Workbook

Sheet Rebate Analysis
A1: WM Skagit County | G1: WM Skagit County | M1: WM Skagit County | S1: WM Skagit County
A2: 2019 - 2020 Rebate Calculation | G2: 2018 - 2019 Rebate Calculation | M2: 2017 - 2018 Rebate Calculation | S2: 2016 - 2017 Rebate Calculation
A5: Residential | G5: Residential | M5: Residential | S5: Residential
D7: Commodity | E7: Total | J7: Commodity | K7: Total | P7: Commodity | Q7: Total | V7: Commodity | W7: Total
C8: Customers | D8: Credit | E8: Credits | I8: Customers | J8: Credit | K8: Credits | O8: Customers | P8: Credit | Q8: Credits | U8: Customers | V8: Credit | W8: Credits
A9: Projected Revenue May 2018-Apr 2019 | G9: Projected Revenue May 2017-Apr 2018 | M9: Projected Revenue May 2016-Apr 2017 | S9: Projected Revenue May 2015-Apr 2016
A10: May - June projected value without adjustment factor | C10: =+Customers!C21+Customers!D21 -> 21720 | D10: =+J11 -> 2.04 | E10: =C10*D10 -> 44308.8 | G10: May - June projected value without adjustment factor | I10: 20086 | J10: =+P11 -> 1.71 | K10: =I10*J10 -> 34347.06 | M10: May - June projected value without adjustment factor | O10: 18118 | P10: =+V11 -> 2.32 | Q10: =O10*P10 -> 42033.76 | S10: May - June projected value without adjustment factor | U10: 17149 | V10: 2.37 | W10: =U10*V10 -> 40643.13
A11: July - April projected value without adjustment factor | C11: =SUM(Customers!E21:N21) -> 111104 | D11: =+L25 -> 1.25 | E11: =C11*D11 -> 138880 | G11: July - April projected value without adjustment factor | I11: 104400 | J11: =+R25 -> 2.04 | K11: =I11*J11 -> 212976 | M11: July - April projected value without adjustment factor | O11: 93257 | P11: =+X25 -> 1.71 | Q11: =O11*P11 -> 159469.47 | S11: July - April projected value without adjustment factor | U11: 87893 | V11: 2.32 | W11: =U11*V11 -> 203911.76
A12: Total | C12: =SUM(C10:C11) -> 132824 | E12: =SUM(E10:E11) -> 183188.8 | G12: Total | I12: =SUM(I10:I11) -> 124486 | K12: =SUM(K10:K11) -> 247323.06 | M12: Total | O12: =SUM(O10:O11) -> 111375 | Q12: =SUM(Q10:Q11) -> 201503.23 | S12: Total | U12: =SUM(U10:U11) -> 105042 | W12: =SUM(W10:W11) -> 244554.89
A14: Actual Commodity Revenue | E14: =+'Commodity Revenue'!Y40 -> 99599.59843 | G14: Actual Commodity Revenue | K14: 205192 | M14: Actual Commodity Revenue | Q14: 231469 | S14: Actual Commodity Revenue (adj. to reflect current customers) | W14: 183627
A16: Owe Customer (company) | E16: =E14-E12 -> -83589.20157 | G16: Owe Customer (company) | K16: =K14-K12 -> -42131.06 | M16: Owe Customer (company) | Q16: =Q14-Q12 -> 29965.77 | S16: Owe Customer (company) | W16: =W14-W12 -> -60927.89
A18: Total Current Customers | E18: =+C12 -> 132824 | G18: Total Current Customers | K18: =+I12 -> 124486 | M18: Total Current Customers | Q18: =+O12 -> 111375 | S18: Total Customers | W18: =+U12 -> 105042
A20: Adjust for Under/(Over) payment in 2018-2019 | F20: =+E16/E18 -> -0.6293230257 | G20: Adjust for Under/(Over) payment in 2017-2018 | L20: =+K16/K18 -> -0.3384401459 | M20: Adjust for Under/(Over) payment in 2016-2017 | R20: =+Q16/Q18 -> 0.2690529293 | S20: Adjust for Under/(Over) payment in 2015-2016 | X20: -0.65
A23: Projected Rev. May 2019-Apr 2020 (based on most recent 6 mo. avg.) | E23: =SUM('Commodity Revenue'!Y34:Y39) -> 39969.88418 | G23: Projected Rev. May 2018-Apr 2019(based on 6 mo. avg. - since "China Sword") | K23: 78930 | M23: Projected Revenue May 2017-Apr 2018 | Q23: =+Q14 -> 231469 | S23: Projected Revenue May 2016-Apr 2017 | W23: =+W14 -> 183627
A24: Total Current Customers (annualized) | E24: =SUM(Customers!I21:N21) -> 66822 | G24: Total Current Customers (most recent 6 months) | K24: 63172 | M24: Total Customers | Q24: 113724 | S24: Total Customers | W24: 107280
A25: Projected Value | F25: =ROUND(+E23/E24,2) -> 0.6 | G25: Projected Value | L25: =ROUND(+K23/K24,2) -> 1.25 | M25: Projected Value | R25: 2.04 | S25: Projected Value | X25: =ROUND(+W23/W24,2) -> 1.71
A27: Residential Commodity Adjustment - as calculated | F27: =SUM(F20:F25) -> -0.02932302572 | G27: Residential Commodity Adjustment | L27: =SUM(L20:L25) -> 0.9115598541 | M27: Residential Commodity Adjustment | R27: =SUM(R20:R25) -> 2.309052929 | S27: Residential Commodity Adjustment | X27: =SUM(X20:X25) -> 1.06
A29: Residential Commodity Adjustment - as proposed | F29: 0

Sheet Commodity Revenue
A1: Waste Management of Skagit County
A2: Single Stream Tonnage and Revenue
C4: Total Single Stream Tonnage Processed | O4: Total Single Stream Commodity Revenue | AA4: Average rate per ton
D5: Mixed | J5: Natural | K5: Colored | L5: Mixed | P5: Mixed | V5: Natural | W5: Colored | X5: Mixed | AB5: Mixed | AH5: Natural | AI5: Colored | AJ5: Mixed
C6: ONP 6 | D6: Paper | E6: OCC | F6: Alum. | G6: Tin | H6: Glass | I6: PET | J6: HDPE | K6: HDPE | L6: Plastics | M6: Total | O6: ONP 6 | P6: Paper | Q6: OCC | R6: Alum. | S6: Tin | T6: Glass | U6: PET | V6: HDPE | W6: HDPE | X6: Plastics | Y6: Total | AA6: ONP 6 | AB6: Paper | AC6: OCC | AD6: Alum. | AE6: Tin | AF6: Glass | AG6: PET | AH6: HDPE | AI6: HDPE | AJ6: Plastics
C7: =+'CRC Composition'!$AC8 -> 0.2782425328 | D7: =+'CRC Composition'!$AC9 -> 0.1557825778 | E7: =+'CRC Composition'!$AC10 -> 0.2876596506 | F7: =+'CRC Composition'!$AC11 -> 0.007367239242 | G7: =+'CRC Composition'!AC12 -> 0.0136425036 | H7: =+'CRC Composition'!AC13 -> 0.235497374 | I7: =+'CRC Composition'!AC14 -> 0.009997505065 | J7: =+'CRC Composition'!$AC15 -> 0.003899154242 | K7: =+'CRC Composition'!$AC16 -> 0.003602408242 | L7: =+'CRC Composition'!$AC17 -> 0.004309054344 | M7: =+M20/$M$20 -> 1
A8: May, 18 | C8: =+'Tonnages Collected'!$E10*C$7 -> 213.1476501 | D8: =+'Tonnages Collected'!$E10*D$7 -> 119.3372201 | E8: =+'Tonnages Collected'!$E10*E$7 -> 220.3616317 | F8: =+'Tonnages Collected'!$E10*F$7 -> 5.643672503 | G8: =+'Tonnages Collected'!$E10*G$7 -> 10.45083782 | H8: =+'Tonnages Collected'!$E10*H$7 -> 180.4027276 | I8: =+'Tonnages Collected'!$E10*I$7 -> 7.658587238 | J8: =+'Tonnages Collected'!$E10*J$7 -> 2.986946516 | K8: =+'Tonnages Collected'!$E10*K$7 -> 2.759624287 | L8: =+'Tonnages Collected'!$E10*L$7 -> 3.300950426 | M8: =SUM(C8:L8) -> 766.0498482 | O8: =+C8*'CRC Prices'!B8 -> 17985.39871 | P8: =+D8*'CRC Prices'!C8 -> -1028.686837 | Q8: =+E8*'CRC Prices'!D8 -> 20672.12467 | R8: =+F8*'CRC Prices'!E8 -> 8817.673919 | S8: =+G8*'CRC Prices'!F8 -> 1900.90289 | T8: =+H8*'CRC Prices'!G8 -> -9622.681492 | U8: =+I8*'CRC Prices'!H8 -> 1386.970149 | V8: =+J8*'CRC Prices'!I8 -> 2335.792175 | W8: =+K8*'CRC Prices'!J8 -> 1095.570842 | X8: =+L8*'CRC Prices'!K8 -> -132.0380171 | Y8: =SUM(O8:X8) -> 43411.02701 | AA8: =+O8/C8 -> 84.38 | AB8: =+P8/D8 -> -8.62 | AC8: 93.81 | AD8: 1562.4 | AE8: 181.89 | AF8: -53.34 | AG8: 181.1 | AH8: 782 | AI8: 397 | AJ8: =+X8/L8 -> -40
A9: Jun | C9: =+'Tonnages Collected'!$E11*C$7 -> 203.2933828 | D9: =+'Tonnages Collected'!$E11*D$7 -> 113.8200077 | E9: =+'Tonnages Collected'!$E11*E$7 -> 210.1738468 | F9: =+'Tonnages Collected'!$E11*F$7 -> 5.382753571 | G9: =+'Tonnages Collected'!$E11*G$7 -> 9.96767345 | H9: =+'Tonnages Collected'!$E11*H$7 -> 172.0623275 | I9: =+'Tonnages Collected'!$E11*I$7 -> 7.30451453 | J9: =+'Tonnages Collected'!$E11*J$7 -> 2.848853652 | K9: =+'Tonnages Collected'!$E11*K$7 -> 2.632041012 | L9: =+'Tonnages Collected'!$E11*L$7 -> 3.148340497 | M9: 730.6337414 | O9: =+C9*'CRC Prices'!B9 -> -2683.472653 | P9: =+D9*'CRC Prices'!C9 -> -764.8704515 | Q9: =+E9*'CRC Prices'!D9 -> 20624.35958 | R9: =+F9*'CRC Prices'!E9 -> 7793.15062 | S9: =+G9*'CRC Prices'!F9 -> 1777.834237 | T9: =+H9*'CRC Prices'!G9 -> -9177.804547 | U9: =+I9*'CRC Prices'!H9 -> 1687.488947 | V9: =+J9*'CRC Prices'!I9 -> 1994.197557 | W9: =+K9*'CRC Prices'!J9 -> 789.6123035 | X9: =+L9*'CRC Prices'!K9 -> -125.9336199 | Y9: =SUM(O9:X9) -> 21914.56198 | AA9: =+O9/C9 -> -13.2 | AB9: -6.72 | AC9: 98.13 | AD9: 1447.8 | AE9: 178.36 | AF9: -53.34 | AG9: 231.02 | AH9: 700 | AI9: 300 | AJ9: =+X9/L9 -> -40
A10: Jul | C10: =+'Tonnages Collected'!$E12*C$7 -> 209.7685799 | D10: =+'Tonnages Collected'!$E12*D$7 -> 117.4453445 | E10: =+'Tonnages Collected'!$E12*E$7 -> 216.8681969 | F10: =+'Tonnages Collected'!$E12*F$7 -> 5.554202292 | G10: =+'Tonnages Collected'!$E12*G$7 -> 10.2851587 | H10: =+'Tonnages Collected'!$E12*H$7 -> 177.5427689 | I10: =+'Tonnages Collected'!$E12*I$7 -> 7.537174201 | J10: =+'Tonnages Collected'!$E12*J$7 -> 2.939593886 | K10: =+'Tonnages Collected'!$E12*K$7 -> 2.715875439 | L10: =+'Tonnages Collected'!$E12*L$7 -> 3.248619833 | M10: 753.9055146 | O10: =+C10*'CRC Prices'!B10 -> 0 | P10: =+D10*'CRC Prices'!C10 -> 411.0587057 | Q10: =+E10*'CRC Prices'!D10 -> 20244.64618 | R10: =+F10*'CRC Prices'!E10 -> 7391.310241 | S10: =+G10*'CRC Prices'!F10 -> 1794.040232 | T10: =+H10*'CRC Prices'!G10 -> -9470.131295 | U10: =+I10*'CRC Prices'!H10 -> 1601.649518 | V10: =+J10*'CRC Prices'!I10 -> 2234.091353 | W10: =+K10*'CRC Prices'!J10 -> 896.238895 | X10: =+L10*'CRC Prices'!K10 -> -129.9447933 | Y10: 24972.95904 | AA10: 0 | AB10: 3.5 | AC10: 93.35 | AD10: 1330.76 | AE10: 174.43 | AF10: -53.34 | AG10: 212.5 | AH10: 760 | AI10: 330 | AJ10: -40
A11: Aug | C11: =+'Tonnages Collected'!$E13*C$7 -> 202.3434289 | D11: =+'Tonnages Collected'!$E13*D$7 -> 113.288147 | E11: =+'Tonnages Collected'!$E13*E$7 -> 209.1917417 | F11: =+'Tonnages Collected'!$E13*F$7 -> 5.35760092 | G11: =+'Tonnages Collected'!$E13*G$7 -> 9.921096283 | H11: =+'Tonnages Collected'!$E13*H$7 -> 171.2583108 | I11: =+'Tonnages Collected'!$E13*I$7 -> 7.270381832 | J11: =+'Tonnages Collected'!$E13*J$7 -> 2.835541465 | K11: =+'Tonnages Collected'!$E13*K$7 -> 2.619741952 | L11: =+'Tonnages Collected'!$E13*L$7 -> 3.133628862 | M11: 727.2196197 | O11: =+C11*'CRC Prices'!B11 -> 2023.434289 | P11: =+D11*'CRC Prices'!C11 -> 993.537049 | Q11: =+E11*'CRC Prices'!D11 -> 19917.14573 | R11: =+F11*'CRC Prices'!E11 -> 6963.113187 | S11: =+G11*'CRC Prices'!F11 -> 1576.56141 | T11: =+H11*'CRC Prices'!G11 -> -9134.918297 | U11: =+I11*'CRC Prices'!H11 -> 1599.484003 | V11: =+J11*'CRC Prices'!I11 -> 2098.300684 | W11: =+K11*'CRC Prices'!J11 -> 785.9225855 | X11: =+L11*'CRC Prices'!K11 -> -125.3451545 | Y11: 26697.23549 | AA11: 10 | AB11: 8.77 | AC11: 95.21 | AD11: 1299.67 | AE11: 158.91 | AF11: -53.34 | AG11: 220 | AH11: 740 | AI11: 300 | AJ11: -40
A12: Sep | C12: =+'Tonnages Collected'!$E14*C$7 -> 183.3088943 | D12: =+'Tonnages Collected'!$E14*D$7 -> 102.6310816 | E12: =+'Tonnages Collected'!$E14*E$7 -> 189.5129834 | F12: =+'Tonnages Collected'!$E14*F$7 -> 4.853609065 | G12: =+'Tonnages Collected'!$E14*G$7 -> 8.987814429 | H12: =+'Tonnages Collected'!$E14*H$7 -> 155.1479668 | I12: =+'Tonnages Collected'!$E14*I$7 -> 6.586453843 | J12: =+'Tonnages Collected'!$E14*J$7 -> 2.568800843 | K12: =+'Tonnages Collected'!$E14*K$7 -> 2.373301684 | L12: =+'Tonnages Collected'!$E14*L$7 -> 2.838847028 | M12: 658.809753 | O12: =+C12*'CRC Prices'!B12 -> 6831.922492 | P12: =+D12*'CRC Prices'!C12 -> 1245.941331 | Q12: =+E12*'CRC Prices'!D12 -> 18297.47854 | R12: =+F12*'CRC Prices'!E12 -> 5978.141749 | S12: =+G12*'CRC Prices'!F12 -> 1312.760176 | T12: =+H12*'CRC Prices'!G12 -> -8275.59255 | U12: =+I12*'CRC Prices'!H12 -> 1114.42799 | V12: =+J12*'CRC Prices'!I12 -> 1798.16059 | W12: =+K12*'CRC Prices'!J12 -> 664.5244715 | X12: =+L12*'CRC Prices'!K12 -> -397.4385839 | Y12: 28570.32621 | AA12: 37.27 | AB12: 12.14 | AC12: 96.55 | AD12: 1231.69 | AE12: 146.06 | AF12: -53.34 | AG12: 169.2 | AH12: 700 | AI12: 280 | AJ12: -140
A13: Oct | C13: =+'Tonnages Collected'!$E15*C$7 -> 199.0928703 | D13: =+'Tonnages Collected'!$E15*D$7 -> 111.4682225 | E13: =+'Tonnages Collected'!$E15*E$7 -> 205.831168 | F13: =+'Tonnages Collected'!$E15*F$7 -> 5.271533406 | G13: =+'Tonnages Collected'!$E15*G$7 -> 9.761718213 | H13: =+'Tonnages Collected'!$E15*H$7 -> 168.507121 | I13: =+'Tonnages Collected'!$E15*I$7 -> 7.15358633 | J13: =+'Tonnages Collected'!$E15*J$7 -> 2.789989733 | K13: =+'Tonnages Collected'!$E15*K$7 -> 2.577656944 | L13: =+'Tonnages Collected'!$E15*L$7 -> 3.083288485 | M13: 715.5371548 | O13: =+C13*'CRC Prices'!B13 -> 3826.564967 | P13: =+D13*'CRC Prices'!C13 -> 1211.659578 | Q13: =+E13*'CRC Prices'!D13 -> 20694.26563 | R13: =+F13*'CRC Prices'!E13 -> 5493.306816 | S13: =+G13*'CRC Prices'!F13 -> 1539.325345 | T13: =+H13*'CRC Prices'!G13 -> -8988.169833 | U13: =+I13*'CRC Prices'!H13 -> 1245.081701 | V13: =+J13*'CRC Prices'!I13 -> 2092.4923 | W13: =+K13*'CRC Prices'!J13 -> 799.0736526 | X13: =+L13*'CRC Prices'!K13 -> -404.3116191 | Y13: 27509.28853 | AA13: 19.22 | AB13: 10.87 | AC13: 100.54 | AD13: 1042.07 | AE13: 157.69 | AF13: -53.34 | AG13: 174.05 | AH13: 750 | AI13: 310 | AJ13: -131.13
A14: Nov | C14: =+'Tonnages Collected'!$E16*C$7 -> 208.9785984 | D14: =+'Tonnages Collected'!$E16*D$7 -> 117.0030492 | E14: =+'Tonnages Collected'!$E16*E$7 -> 216.0514785 | F14: =+'Tonnages Collected'!$E16*F$7 -> 5.533285351 | G14: =+'Tonnages Collected'!$E16*G$7 -> 10.24642514 | H14: =+'Tonnages Collected'!$E16*H$7 -> 176.8741488 | I14: =+'Tonnages Collected'!$E16*I$7 -> 7.508789455 | J14: =+'Tonnages Collected'!$E16*J$7 -> 2.928523473 | K14: =+'Tonnages Collected'!$E16*K$7 -> 2.705647543 | L14: =+'Tonnages Collected'!$E16*L$7 -> 3.236385639 | M14: 751.0663316 | O14: =+C14*'CRC Prices'!B14 -> 0 | P14: =+D14*'CRC Prices'!C14 -> 1645.062872 | Q14: =+E14*'CRC Prices'!D14 -> 22875.53055 | R14: =+F14*'CRC Prices'!E14 -> 5345.485647 | S14: =+G14*'CRC Prices'!F14 -> 1647.215305 | T14: =+H14*'CRC Prices'!G14 -> -9434.467098 | U14: =+I14*'CRC Prices'!H14 -> 1201.406313 | V14: =+J14*'CRC Prices'!I14 -> 2225.67784 | W14: =+K14*'CRC Prices'!J14 -> 974.0331156 | X14: =+L14*'CRC Prices'!K14 -> -453.0939895 | Y14: 26026.85055 | AA14: 0 | AB14: 14.06 | AC14: 105.88 | AD14: 966.06 | AE14: 160.76 | AF14: -53.34 | AG14: 160 | AH14: 760 | AI14: 360 | AJ14: -140
A15: Dec | C15: =+'Tonnages Collected'!$E17*C$7 -> 188.9864917 | D15: =+'Tonnages Collected'!$E17*D$7 -> 105.8098578 | E15: =+'Tonnages Collected'!$E17*E$7 -> 195.382739 | F15: =+'Tonnages Collected'!$E17*F$7 -> 5.003939129 | G15: =+'Tonnages Collected'!$E17*G$7 -> 9.266192581 | H15: =+'Tonnages Collected'!$E17*H$7 -> 159.9533402 | I15: =+'Tonnages Collected'!$E17*I$7 -> 6.790455033 | J15: =+'Tonnages Collected'!$E17*J$7 -> 2.648363905 | K15: =+'Tonnages Collected'!$E17*K$7 -> 2.446809581 | L15: =+'Tonnages Collected'!$E17*L$7 -> 2.926774187 | M15: 679.214963 | O15: =+C15*'CRC Prices'!B15 -> 0 | P15: =+D15*'CRC Prices'!C15 -> 852.827454 | Q15: =+E15*'CRC Prices'!D15 -> 20599.20217 | R15: =+F15*'CRC Prices'!E15 -> 4495.338756 | S15: =+G15*'CRC Prices'!F15 -> 1445.618705 | T15: =+H15*'CRC Prices'!G15 -> -8531.911166 | U15: =+I15*'CRC Prices'!H15 -> 1086.472805 | V15: =+J15*'CRC Prices'!I15 -> 1880.338372 | W15: =+K15*'CRC Prices'!J15 -> 856.3833533 | X15: =+L15*'CRC Prices'!K15 -> -409.7483862 | Y15: 22274.52206 | AA15: 0 | AB15: 8.06 | AC15: 105.43 | AD15: 898.36 | AE15: 156.01 | AF15: -53.34 | AG15: 160 | AH15: 710 | AI15: 350 | AJ15: -140
A16: Jan., '19 | C16: =+'Tonnages Collected'!$E18*C$7 -> 190.6230446 | D16: =+'Tonnages Collected'!$E18*D$7 -> 106.7261319 | E16: =+'Tonnages Collected'!$E18*E$7 -> 197.074681 | F16: =+'Tonnages Collected'!$E18*F$7 -> 5.047271385 | G16: =+'Tonnages Collected'!$E18*G$7 -> 9.346434371 | H16: =+'Tonnages Collected'!$E18*H$7 -> 161.3384768 | I16: =+'Tonnages Collected'!$E18*I$7 -> 6.849257855 | J16: =+'Tonnages Collected'!$E18*J$7 -> 2.671297753 | K16: =+'Tonnages Collected'!$E18*K$7 -> 2.467998044 | L16: =+'Tonnages Collected'!$E18*L$7 -> 2.952118966 | M16: 685.0967126 | O16: =+C16*'CRC Prices'!B16 -> 0 | P16: =+D16*'CRC Prices'!C16 -> 860.2126234 | Q16: =+E16*'CRC Prices'!D16 -> 20444.52741 | R16: =+F16*'CRC Prices'!E16 -> 4398.64654 | S16: =+G16*'CRC Prices'!F16 -> 1205.316176 | T16: =+H16*'CRC Prices'!G16 -> -8605.794351 | U16: =+I16*'CRC Prices'!H16 -> 1095.881257 | V16: =+J16*'CRC Prices'!I16 -> 1896.621405 | W16: =+K16*'CRC Prices'!J16 -> 863.7993154 | X16: =+L16*'CRC Prices'!K16 -> -413.2966552 | Y16: 21745.91372 | AA16: 0 | AB16: 8.06 | AC16: 103.74 | AD16: 871.49 | AE16: 128.96 | AF16: -53.34 | AG16: 160 | AH16: 710 | AI16: 350 | AJ16: -140
A17: Feb | C17: =+'Tonnages Collected'!$E19*C$7 -> 153.0809512 | D17: =+'Tonnages Collected'!$E19*D$7 -> 85.70704467 | E17: =+'Tonnages Collected'!$E19*E$7 -> 158.2619756 | F17: =+'Tonnages Collected'!$E19*F$7 -> 4.053240816 | G17: =+'Tonnages Collected'!$E19*G$7 -> 7.505708805 | H17: =+'Tonnages Collected'!$E19*H$7 -> 129.5638077 | I17: =+'Tonnages Collected'!$E19*I$7 -> 5.500336593 | J17: =+'Tonnages Collected'!$E19*J$7 -> 2.14520129 | K17: =+'Tonnages Collected'!$E19*K$7 -> 1.981940269 | L17: =+'Tonnages Collected'!$E19*L$7 -> 2.370716407 | M17: 550.1709234 | O17: =+C17*'CRC Prices'!B17 -> 0 | P17: =+D17*'CRC Prices'!C17 -> -335.1145447 | Q17: =+E17*'CRC Prices'!D17 -> 14471.47505 | R17: =+F17*'CRC Prices'!E17 -> 3646.781827 | S17: =+G17*'CRC Prices'!F17 -> 993.3805603 | T17: =+H17*'CRC Prices'!G17 -> -6910.933504 | U17: =+I17*'CRC Prices'!H17 -> 926.4216924 | V17: =+J17*'CRC Prices'!I17 -> 1372.928826 | W17: =+K17*'CRC Prices'!J17 -> 606.4737222 | X17: =+L17*'CRC Prices'!K17 -> -331.900297 | Y17: 14439.51333 | AA17: 0 | AB17: -3.91 | AC17: 91.44 | AD17: 899.72 | AE17: 132.35 | AF17: -53.34 | AG17: 168.43 | AH17: 640 | AI17: 306 | AJ17: -140
A18: Mar | C18: =+'Tonnages Collected'!$E20*C$7 -> 192.8157816 | D18: =+'Tonnages Collected'!$E20*D$7 -> 107.9538027 | E18: =+'Tonnages Collected'!$E20*E$7 -> 199.3416312 | F18: =+'Tonnages Collected'!$E20*F$7 -> 5.105330153 | G18: =+'Tonnages Collected'!$E20*G$7 -> 9.453946414 | H18: =+'Tonnages Collected'!$E20*H$7 -> 163.1943534 | I18: =+'Tonnages Collected'!$E20*I$7 -> 6.928044874 | J18: =+'Tonnages Collected'!$E20*J$7 -> 2.702025694 | K18: =+'Tonnages Collected'!$E20*K$7 -> 2.496387428 | L18: =+'Tonnages Collected'!$E20*L$7 -> 2.986077193 | M18: 692.9773807 | O18: =+C18*'CRC Prices'!B18 -> 0 | P18: =+D18*'CRC Prices'!C18 -> -394.0313799 | Q18: =+E18*'CRC Prices'!D18 -> 16453.65824 | R18: =+F18*'CRC Prices'!E18 -> 5029.771266 | S18: =+G18*'CRC Prices'!F18 -> 1343.122167 | T18: =+H18*'CRC Prices'!G18 -> -8704.786811 | U18: =+I18*'CRC Prices'!H18 -> 1108.48718 | V18: =+J18*'CRC Prices'!I18 -> 1621.215416 | W18: =+K18*'CRC Prices'!J18 -> 773.8801026 | X18: =+L18*'CRC Prices'!K18 -> -254.8318276 | Y18: 16976.48435 | AA18: 0 | AB18: -3.65 | AC18: 82.54 | AD18: 985.2 | AE18: 142.07 | AF18: -53.34 | AG18: 160 | AH18: 600 | AI18: 310 | AJ18: -85.34
A19: Apr | C19: =+'Tonnages Collected'!$E21*C$7 -> 204.1819593 | D19: =+'Tonnages Collected'!$E21*D$7 -> 114.3175044 | E19: =+'Tonnages Collected'!$E21*E$7 -> 211.0924972 | F19: =+'Tonnages Collected'!$E21*F$7 -> 5.406281087 | G19: =+'Tonnages Collected'!$E21*G$7 -> 10.01124123 | H19: =+'Tonnages Collected'!$E21*H$7 -> 172.8143959 | I19: =+'Tonnages Collected'!$E21*I$7 -> 7.336441886 | J19: =+'Tonnages Collected'!$E21*J$7 -> 2.861305728 | K19: =+'Tonnages Collected'!$E21*K$7 -> 2.643545419 | L19: =+'Tonnages Collected'!$E21*L$7 -> 3.162101602 | M19: 733.8272737 | O19: =+C19*'CRC Prices'!B19 -> 0 | P19: =+D19*'CRC Prices'!C19 -> -733.918378 | Q19: =+E19*'CRC Prices'!D19 -> 14806.02775 | R19: =+F19*'CRC Prices'!E19 -> 5158.511225 | S19: =+G19*'CRC Prices'!F19 -> 1409.482652 | T19: =+H19*'CRC Prices'!G19 -> -9217.91988 | U19: =+I19*'CRC Prices'!H19 -> 1283.87733 | V19: =+J19*'CRC Prices'!I19 -> 1430.652864 | W19: =+K19*'CRC Prices'!J19 -> 713.7572631 | X19: =+L19*'CRC Prices'!K19 -> -301.0636935 | Y19: 14549.40713 | AA19: 0 | AB19: -6.42 | AC19: 70.14 | AD19: 954.17 | AE19: 140.79 | AF19: -53.34 | AG19: 175 | AH19: 500 | AI19: 270 | AJ19: -95.21
C20: =SUM(C8:C19) -> 2349.621633 | D20: =SUM(D8:D19) -> 1315.507414 | E20: 2429.144571 | F20: 62.21271968 | G20: 115.2042474 | H20: 1988.659745 | I20: 84.42402367 | J20: 32.92644394 | K20: 30.4205696 | L20: 36.38784913 | M20: 8444.509217 | O20: =SUM(O8:O19) -> 27983.84781 | P20: =SUM(P8:P19) -> 3963.678022 | Q20: 230100.4415 | R20: 70511.23179 | S20: 17945.55986 | T20: -106075.1108 | U20: 15337.64888 | V20: 22980.46938 | W20: 9819.269622 | X20: -3478.946637 | Y20: =SUM(Y8:Y19) -> 289088.0894 | AA20: =+O20/C20 -> 11.90993793 | AB20: =+P20/D20 -> 3.013041189 | AC20: =+Q20/E20 -> 94.72488556 | AD20: =+R20/F20 -> 1133.389316 | AE20: =+S20/G20 -> 155.771686 | AF20: =+T20/H20 -> -53.34 | AG20: =+U20/I20 -> 181.6739859 | AH20: =+V20/J20 -> 697.9335341 | AI20: =+W20/K20 -> 322.7838844 | AJ20: -95.60737225
C23: Total Single Stream Tonnage Processed | O23: Total Single Stream Commodity Revenue
B24: % | D24: Mixed | J24: Natural | K24: Colored | L24: Mixed | P24: Mixed | V24: Natural | W24: Colored | X24: Mixed | AB24: lbs./
B25: Reg. | C25: =+C6 -> ONP 6 | D25: Paper | E25: =+E6 -> OCC | F25: Alum. | G25: Tin | H25: Glass | I25: PET | J25: HDPE | K25: HDPE | L25: Plastics | M25: Total | O25: =+O6 -> ONP 6 | P25: Paper | Q25: =+Q6 -> OCC | R25: Alum. | S25: Tin | T25: Glass | U25: PET | V25: HDPE | W25: HDPE | X25: Plastics | Y25: Total | AA25: Customers | AB25: Customer
A28: =+A8 -> May, 18 | B28: =+Customers!C$22 -> 0.340339175 | C28: =+C8*$B28 -> 72.54249538 | D28: =+D8*$B28 -> 40.61513103 | E28: =+E8*$B28 -> 74.99769594 | F28: 1.920762844 | G28: 3.55682952 | H28: 61.39811549 | I28: 2.606517263 | J28: 1.016574913 | K28: 0.9392082532 | L28: 1.123442745 | M28: =SUM(C28:L28) -> 260.7167734 | O28: =+O8*$B$40 -> 6196.514332 | P28: -354.4137571 | Q28: 7122.172761 | R28: 3037.955605 | S28: 654.9185922 | T28: -3315.305084 | U28: 477.8532044 | V28: 804.7511164 | W28: 377.4573215 | X28: -45.49109409 | Y28: =SUM(O28:X28) -> 14956.413 | AA28: =+Customers!C$21 -> 10817 | AB28: =+M28*2000/AA28 -> 48.20500571
A29: =+A9 -> Jun | B29: =+Customers!D$22 -> 0.3415512812 | C29: =+C9*$B29 -> 69.43511536 | D29: 38.87536945 | E29: =+E9*$B29 -> 71.78514665 | F29: 1.838486379 | G29: 3.404471638 | H29: 58.7681084 | I29: 2.494866297 | J29: 0.973029615 | K29: 0.8989769798 | L29: 1.075319731 | M29: =SUM(C29:L29) -> 249.5488905 | O29: =+O9*$B$40 -> -924.5375663 | P29: -263.5210256 | Q29: 7105.716243 | R29: 2684.976312 | S29: 612.5177153 | T29: -3162.031508 | U29: 581.3910279 | V29: 687.0614291 | W29: 272.0453427 | X29: -43.38794447 | Y29: =SUM(O29:X29) -> 7550.230025 | AA29: =+Customers!D$21 -> 10903 | AB29: 45.77618829
A30: Jul | B30: =+Customers!E$22 -> 0.343567662 | C30: 72.06970056 | D30: 40.35042242 | E30: =+E10*$B30 -> 74.50889938 | F30: 1.908244296 | G30: 3.533647928 | H30: 60.99795403 | I30: 2.589529318 | J30: 1.009949399 | K30: 0.933086975 | L30: 1.116120721 | M30: 259.017555 | O30: =+O10*$B$40 -> 0 | P30: 141.6221682 | Q30: 6974.893481 | R30: 2546.530137 | S30: 618.1011713 | T30: -3262.746923 | U30: 551.816746 | V30: 769.7121043 | W30: 308.7814314 | X30: -44.76991515 | Y30: 8603.940401 | AA30: =+Customers!E$21 -> 11011 | AB30: 47.04705386
A31: Aug | B31: =+Customers!F$22 -> 0.3456012413 | C31: 69.9301402 | D31: 39.15252422 | E31: =+E11*$B31 -> 72.2969256 | F31: 1.851593528 | G31: 3.42874319 | H31: 59.18708478 | I31: 2.512652986 | J31: 0.9799666501 | K31: 0.9053860703 | L31: 1.082986024 | M31: 251.3280033 | O31: =+O11*$B$40 -> 697.1343685 | P31: 342.303591 | Q31: 6862.05966 | R31: 2399.003289 | S31: 543.1731335 | T31: -3147.255897 | U31: 551.0706606 | V31: 722.9281081 | W31: 270.7741231 | X31: -43.18520032 | Y31: 9198.005837 | AA31: =+Customers!F$21 -> 11137 | AB31: 45.13387865
A32: Sep | B32: =+Customers!G$22 -> 0.3446719781 | C32: 63.18143921 | D32: 35.37405791 | E32: =+E12*$B32 -> 65.31981485 | F32: 1.672903037 | G32: 3.097847778 | H32: 53.47515662 | I32: 2.270166075 | J32: 0.885393668 | K32: 0.818010586 | L32: 0.9784710207 | M32: 227.0732608 | O32: =+O12*$B$40 -> 2353.804123 | P32: 429.2645071 | Q32: 6304.035282 | R32: 2059.65081 | S32: 452.285622 | T32: -2851.192162 | U32: 383.95418 | V32: 619.5207595 | W32: 228.9487977 | X32: -136.9296239 | Y32: 9843.342296 | AA32: =+Customers!G$21 -> 11075 | AB32: 41.00645792
A33: Oct | B33: =+Customers!H$22 -> 0.3443883906 | C33: 68.56527319 | D33: 38.38836175 | E33: =+E13*$B33 -> 70.88586467 | F33: 1.815454906 | G33: 3.361822425 | H33: 58.0318962 | I33: 2.463612083 | J33: 0.960840074 | K33: 0.8877151265 | L33: 1.061848759 | M33: 246.4226892 | O33: =+O13*$B$40 -> 1318.367474 | P33: 417.4534056 | Q33: 7129.800991 | R33: 1892.610498 | S33: 530.3441817 | T33: -3096.696608 | U33: 428.9683385 | V33: 720.9269437 | W33: 275.3050639 | X33: -139.2975926 | Y33: 9477.782695 | AA33: =+Customers!H$21 -> 11059 | AB33: 44.56509435
A34: Nov | B34: =+Customers!I$22 -> 0.3443991156 | C34: 71.97204448 | D34: 40.29574668 | E34: =+E14*$B34 -> 74.40793813 | F34: 1.905658581 | G34: 3.528859755 | H34: 60.91530042 | I34: 2.586020447 | J34: 1.008580894 | K34: 0.9318226209 | L34: 1.114608352 | M34: 258.6665803 | O34: =+O14*$B$40 -> 0 | P34: 566.7739609 | Q34: 7881.31279 | R34: 1841.68163 | S34: 567.5155391 | T34: -3250.459527 | U34: 413.9208452 | V34: 766.8133943 | W34: 335.5838955 | X34: -156.104596 | Y34: 8967.037932 | AA34: =+Customers!I$21 -> 11059 | AB34: 46.77937975
A35: Dec | B35: =+Customers!J$22 -> 0.3448329497 | C35: 65.16876936 | D35: 36.48672538 | E35: =+E15*$B35 -> 67.37440619 | F35: 1.72552309 | G35: 3.19528852 | H35: 55.15718211 | I35: 2.341572639 | J35: 0.913243137 | K35: 0.843740565 | L35: 1.009248176 | M35: 234.2156992 | O35: =+O15*$B$40 -> 0 | P35: 293.8248758 | Q35: 7097.048751 | R35: 1548.78029 | S35: 498.0594073 | T35: -2939.501685 | U35: 374.3227725 | V35: 647.8334932 | W35: 295.0499907 | X35: -141.1707235 | Y35: 7674.247172 | AA35: =+Customers!J$21 -> 11085 | AB35: 42.25813246
A36: Jan., '19 | B36: =+Customers!K$22 -> 0.3455053563 | C36: 65.86128293 | D36: 36.87445024 | E36: =+E16*$B36 -> 68.09035787 | F36: 1.743859298 | G36: 3.229243138 | H36: 55.7433079 | I36: 2.366455276 | J36: 0.9229476821 | K36: 0.8527065436 | L36: 1.019972915 | M36: 236.7045838 | O36: =+O16*$B$40 -> 0 | P36: 296.3692902 | Q36: 7043.758613 | R36: 1515.466894 | S36: 415.2679116 | T36: -2964.956679 | U36: 377.5642688 | V36: 653.4434909 | W36: 297.6050142 | X36: -142.3932095 | Y36: 7492.125594 | AA36: =+Customers!K$21 -> 11127 | AB36: 42.54598433
A37: Feb | B37: =+Customers!L$22 -> 0.3451404425 | C37: 52.83442723 | D37: 29.58096732 | E37: =+E17*$B37 -> 54.62260828 | F37: 1.398937329 | G37: 2.590523658 | H37: 44.71770992 | I37: 1.898388605 | J37: 0.7403957224 | K37: 0.6840477413 | L37: 0.8182301098 | M37: 189.8862359 | O37: =+O17*$B$40 -> 0 | P37: -115.4571056 | Q37: 4985.861253 | R37: 1256.426739 | S37: 342.2496759 | T37: -2381.025808 | U37: 319.1803188 | V37: 473.0155434 | W37: 208.9485572 | X37: -114.3497 | Y37: 4974.849473 | AA37: =+Customers!L$21 -> 11108 | AB37: 34.18909541
A38: Mar | B38: =+Customers!M22 -> 0.3457746915 | C38: =+C18*$B38 -> 66.67081741 | D38: 37.32769284 | E38: 68.92729105 | F38: 1.765293959 | G38: 3.268935405 | H38: 56.42847721 | I38: 2.395542579 | J38: 0.9342921009 | K38: 0.8631875928 | L38: 1.03250992 | M38: =SUM(C38:L38) -> 239.6140401 | O38: =+O18*$B$40 -> 0 | P38: -135.755739 | Q38: 5668.783369 | R38: 1732.908469 | S38: 462.7462472 | T38: -2999.062578 | U38: 381.9073909 | V38: 558.5577904 | W38: 266.6251232 | X38: -87.7972792 | Y38: 5848.912793 | AA38: =+Customers!M$21 -> 11154 | AB38: 42.96468353
A39: Apr | B39: =+Customers!N22 -> 0.3484797037 | C39: =+C19*$B39 -> 71.15326867 | D39: 39.83733004 | E39: 73.56145086 | F39: 1.883979231 | G39: 3.488714376 | H39: 60.22230949 | I39: 2.556601094 | J39: 0.997106972 | K39: 0.9212219242 | L39: 1.101928229 | M39: 255.7239109 | O39: =+O19*$B$40 -> 0 | P39: -252.8570993 | Q39: 5101.124787 | R39: 1777.263282 | S39: 485.6094433 | T39: -3175.852455 | U39: 442.3346073 | V39: 492.9032221 | W39: 245.9109849 | X39: -103.7255566 | Y39: 5012.711215 | AA39: =+Customers!N$21 -> 11289 | AB39: 45.30497137
B40: =+Customers!O22 -> 0.3445302732 | C40: =SUM(C28:C39) -> 809.384774 | D40: =SUM(D28:D39) -> 453.1587793 | E40: 836.7783995 | F40: 21.43069648 | G40: 39.68492733 | H40: 685.0426026 | I40: 29.08192466 | J40: 11.34232083 | K40: 10.47911098 | L40: 12.5346867 | M40: 2908.918222 | O40: =SUM(O28:O39) -> 9641.282731 | P40: =SUM(P28:P39) -> 1365.607072 | Q40: 79276.56798 | R40: 24293.25396 | S40: 6182.78864 | T40: -36546.08692 | U40: 5284.284361 | V40: 7917.467395 | W40: 3383.035646 | X40: -1198.602435 | Y40: =SUM(Y28:Y39) -> 99599.59843 | AA40: =SUM(AA28:AA39) -> 132824 | AB40: 43.80109351

Sheet CRC Prices
A1: Cascade Recycling Center
A2: Monthly Price per ton of Commodities Sold
B5: Passback Price/ton schedule
I6: Natural | J6: Colored | K6: Mixed
A7: Month | B7: ONP 6 | C7: Mixed Paper | D7: OCC | E7: Alum. | F7: Tin | G7: Glass | H7: PET | I7: HDPE | J7: HDPE | K7: Plastics 3-7
A8: 2018-05-10 | B8: 84.38 | C8: -8.62 | D8: 93.81 | E8: 1562.4 | F8: 181.89 | G8: -53.34 | H8: 181.1 | I8: 782 | J8: 397 | K8: -40
A9: 2018-06-10 | B9: -13.2 | C9: -6.72 | D9: 98.13 | E9: 1447.8 | F9: 178.36 | G9: -53.34 | H9: 231.02 | I9: 700 | J9: 300 | K9: -40
A10: 2018-07-10 | B10: 0 | C10: 3.5 | D10: 93.35 | E10: 1330.76 | F10: 174.43 | G10: -53.34 | H10: 212.5 | I10: 760 | J10: 330 | K10: -40
A11: 2018-08-10 | B11: 10 | C11: 8.77 | D11: 95.21 | E11: 1299.67 | F11: 158.91 | G11: -53.34 | H11: 220 | I11: 740 | J11: 300 | K11: -40
A12: 2018-09-10 | B12: 37.27 | C12: 12.14 | D12: 96.55 | E12: 1231.69 | F12: 146.06 | G12: -53.34 | H12: 169.2 | I12: 700 | J12: 280 | K12: -140
A13: 2018-10-10 | B13: 19.22 | C13: 10.87 | D13: 100.54 | E13: 1042.07 | F13: 157.69 | G13: -53.34 | H13: 174.05 | I13: 750 | J13: 310 | K13: -131.13
A14: 2018-11-10 | B14: 0 | C14: 14.06 | D14: 105.88 | E14: 966.06 | F14: 160.76 | G14: -53.34 | H14: 160 | I14: 760 | J14: 360 | K14: -140
A15: 2018-12-10 | B15: 0 | C15: 8.06 | D15: 105.43 | E15: 898.36 | F15: 156.01 | G15: -53.34 | H15: 160 | I15: 710 | J15: 350 | K15: -140
A16: 2019-01-10 | B16: 0 | C16: 8.06 | D16: 103.74 | E16: 871.49 | F16: 128.96 | G16: -53.34 | H16: 160 | I16: 710 | J16: 350 | K16: -140
A17: 2019-02-10 | B17: 0 | C17: -3.91 | D17: 91.44 | E17: 899.72 | F17: 132.35 | G17: -53.34 | H17: 168.43 | I17: 640 | J17: 306 | K17: -140
A18: 2019-03-10 | B18: 0 | C18: -3.65 | D18: 82.54 | E18: 985.2 | F18: 142.07 | G18: -53.34 | H18: 160 | I18: 600 | J18: 310 | K18: -85.34
A19: 2019-04-10 | B19: 0 | C19: -6.42 | D19: 70.14 | E19: 954.17 | F19: 140.79 | G19: -53.34 | H19: 175 | I19: 500 | J19: 270 | K19: -95.21
A20: Average | B20: =+'Commodity Revenue'!AA20 -> 11.90993793 | C20: =+'Commodity Revenue'!AB20 -> 3.013041189 | D20: =+'Commodity Revenue'!AC20 -> 94.72488556 | E20: =+'Commodity Revenue'!AD20 -> 1133.389316 | F20: =+'Commodity Revenue'!AE20 -> 155.771686 | G20: =+'Commodity Revenue'!AF20 -> -53.34 | H20: =+'Commodity Revenue'!AG20 -> 181.6739859 | I20: =+'Commodity Revenue'!AH20 -> 697.9335341 | J20: =+'Commodity Revenue'!AI20 -> 322.7838844 | K20: =+'Commodity Revenue'!AJ20 -> -95.60737225

Sheet CRC Composition
A1: Cascade Recycling Center
A2: Tonnage Delivered and Processed
A5: Stream Composition-CRC | AC5: %
B6: 2018-05-05 | D6: 2018-06-05 | F6: 2018-07-05 | H6: 2018-08-05 | J6: 2018-09-05 | L6: 2018-10-05 | N6: 2018-11-05 | P6: 2018-12-05 | R6: 2019-01-05 | T6: 2019-02-05 | V6: 2019-03-11 | X6: 2019-04-11 | Z6: Total | AC6: Excluding
B7: Tons | D7: Tons | F7: Tons | H7: Tons | J7: Tons | L7: Tons | N7: Tons | P7: Tons | R7: Tons | T7: Tons | V7: Tons | X7: Tons | Z7: Tons | AC7: Residue
A8: Newspaper | B8: 2053.72 | C8: =+B8/B$19 -> 0.2456264987 | D8: 1973.47 | E8: =+D8/D$19 -> 0.2493319672 | F8: 2150.37 | G8: =+F8/F$19 -> 0.2702617443 | H8: 2519.75 | I8: =+H8/H$19 -> 0.3003632133 | J8: 1859.48 | K8: =+J8/J$19 -> 0.263585539 | L8: 2562.74 | M8: =+L8/L$19 -> 0.3192439019 | N8: 2574.55 | O8: =+N8/N$19 -> 0.3085932162 | P8: 2464.29 | Q8: =+P8/P$19 -> 0.3056805989 | R8: 2361.97 | S8: =+R8/R$19 -> 0.2666151189 | T8: 1561.21 | U8: =+T8/T$19 -> 0.2587042005 | V8: 0 | W8: =V8/V$19 -> 0 | X8: 0 | Y8: =X8/X$19 -> 0 | Z8: =+P8+N8+L8+J8+H8+F8+D8+B8+R8+T8+V8+X8 -> 22081.55 | AA8: =+Z8/$Z$19 -> 0.2346766032 | AC8: =+Z8/($Z$19-$Z$18) -> 0.2782425328
A9: Mix Paper | B9: 1127.65 | C9: =+B9/B$19 -> 0.1348678112 | D9: 1188.86 | E9: 0.1502028419 | F9: 1012.95 | G9: =+F9/F$19 -> 0.1273090835 | H9: 567.59 | I9: =+H9/H$19 -> 0.0676587583 | J9: 516.89 | K9: =+J9/J$19 -> 0.07327033862 | L9: 347.9 | M9: =+L9/L$19 -> 0.04333836186 | N9: 331.78 | O9: =+N9/N$19 -> 0.03976813707 | P9: 231.02 | Q9: =+P9/P$19 -> 0.02865666458 | R9: 692.09 | S9: =+R9/R$19 -> 0.07812193112 | T9: 297.24 | U9: =+T9/T$19 -> 0.04925489624 | V9: 3035.96 | W9: =V9/V$19 -> 0.4044840229 | X9: 3013.1 | Y9: 0.3972168062 | Z9: =+P9+N9+L9+J9+H9+F9+D9+B9+R9+T9+V9+X9 -> 12363.03 | AA9: =+Z9/$Z$19 -> 0.1313908618 | AC9: =+Z9/($Z$19-$Z$18) -> 0.1557825778
A10: OCC | B10: 1752.87 | C10: 0.2096446063 | D10: 1890.36 | E10: 0.2388316911 | F10: 1840.49 | G10: =+F10/F$19 -> 0.2313155586 | H10: 1937.47 | I10: =+H10/H$19 -> 0.2309533544 | J10: 1614.22 | K10: =+J10/J$19 -> 0.2288193736 | L10: 2197.63 | M10: =+L10/L$19 -> 0.2737616677 | N10: 2086.09 | O10: =+N10/N$19 -> 0.2500449486 | P10: 1909.43 | Q10: =+P10/P$19 -> 0.2368534977 | R10: 2258.15 | S10: =+R10/R$19 -> 0.2548960955 | T10: 1436.08 | U10: =+T10/T$19 -> 0.2379692215 | V10: 1965.68 | W10: =V10/V$19 -> 0.2618895355 | X10: 1940.43 | Y10: 0.2558067795 | Z10: 22828.9 | AA10: 0.2426192322 | AC10: 0.2876596506
A11: Aluminum | B11: 57.02 | C11: 0.006819636055 | D11: 28.85 | E11: 0.003644964075 | F11: 47.19 | G11: =+F11/F$19 -> 0.005930910361 | H11: 60.7 | I11: =+H11/H$19 -> 0.007235657128 | J11: 45.43 | K11: =+J11/J$19 -> 0.00643980631 | L11: 42.91 | M11: =+L11/L$19 -> 0.005345355296 | N11: 43.36 | O11: =+N11/N$19 -> 0.005197258494 | P11: 42.72 | Q11: =+P11/P$19 -> 0.005299163323 | R11: 60.56 | S11: =+R11/R$19 -> 0.006835908839 | T11: 44.11 | U11: =+T11/T$19 -> 0.007309357668 | V11: 58.31 | W11: =V11/V$19 -> 0.007768700305 | X11: 53.51 | Y11: 0.007054220338 | Z11: 584.67 | AA11: 0.006213710975 | AC11: 0.007367239242
A12: Tin Cans | B12: 77.6 | C12: 0.009281019955 | D12: 60.44 | E12: 0.00763610498 | F12: 58.65 | G12: =+F12/F$19 -> 0.007371220443 | H12: 69.77 | I12: =+H12/H$19 -> 0.008316833572 | J12: 100.62 | K12: =+J12/J$19 -> 0.01426311492 | L12: 115.69 | M12: =+L12/L$19 -> 0.01441165589 | N12: 116.67 | O12: =+N12/N$19 -> 0.01398441302 | P12: 101.54 | Q12: =+P12/P$19 -> 0.01259543642 | R12: 119.14 | S12: =+R12/R$19 -> 0.01344831868 | T12: 83.57 | U12: =+T12/T$19 -> 0.01384817548 | V12: 93.26 | W12: =V12/V$19 -> 0.01242512417 | X12: 85.73 | Y12: 0.01130178115 | Z12: 1082.68 | AA12: 0.01150642345 | AC12: 0.0136425036
A13: Glass | B13: 1548.92 | C13: 0.1852520287 | D13: 1585.46 | E13: 0.200310043 | F13: 1541.59 | G13: =+F13/F$19 -> 0.1937493559 | H13: 1830.87 | I13: =+H13/H$19 -> 0.2182462531 | J13: 1527.84 | K13: =+J13/J$19 -> 0.2165748112 | L13: 1587.31 | M13: =+L13/L$19 -> 0.1977333003 | N13: 1594.76 | O13: =+N13/N$19 -> 0.1911526743 | P13: 1581.31 | Q13: =+P13/P$19 -> 0.1961521525 | R13: 1595.39 | S13: =+R13/R$19 -> 0.1800848845 | T13: 1313.26 | U13: =+T13/T$19 -> 0.2176170268 | V13: 1483.67 | W13: =V13/V$19 -> 0.1976708554 | X13: 1498.88 | Y13: 0.1975972674 | Z13: 18689.26 | AA13: 0.1986242837 | AC13: 0.235497374
A14: PET | B14: 117.27 | C14: 0.01402558261 | D14: 94.93 | E14: 0.01199363742 | F14: 57.46 | G14: =+F14/F$19 -> 0.007221659448 | H14: 87.51 | I14: =+H14/H$19 -> 0.01043150503 | J14: 75.99 | K14: =+J14/J$19 -> 0.01077175614 | L14: 64.82 | M14: =+L14/L$19 -> 0.008074712894 | N14: 27.61 | O14: =+N14/N$19 -> 0.003309416675 | P14: 13.93 | Q14: =+P14/P$19 -> 0.001727934108 | R14: 49.21 | S14: =+R14/R$19 -> 0.005554740324 | T14: 52.94 | U14: =+T14/T$19 -> 0.008772554862 | V14: 56.45 | W14: =V14/V$19 -> 0.007520890623 | X14: 95.29 | Y14: 0.01256207543 | Z14: 793.41 | AA14: 0.008432141934 | AC14: 0.009997505065
A15: HDPE Natl | B15: 23.36 | C15: 0.002793874048 | D15: 26.62 | E15: 0.003363221618 | F15: 23.71 | G15: =+F15/F$19 -> 0.002979908554 | H15: 32.7 | I15: =+H15/H$19 -> 0.00389795697 | J15: 9.47 | K15: =+J15/J$19 -> 0.001342394139 | L15: 25.39 | M15: =+L15/L$19 -> 0.003162865788 | N15: 31.17 | O15: =+N15/N$19 -> 0.003736128857 | P15: 31.79 | Q15: =+P15/P$19 -> 0.003943361471 | R15: 31.1 | S15: =+R15/R$19 -> 0.003510514612 | T15: 26.18 | U15: =+T15/T$19 -> 0.004338222257 | V15: 17.94 | W15: =V15/V$19 -> 0.002390164354 | X15: 30.01 | Y15: 0.003956216639 | Z15: 309.44 | AA15: 0.003288642694 | AC15: 0.003899154242
A16: HDPE Col | B16: 22.53 | C16: 0.002694605407 | D16: 26.09 | E16: 0.003296260406 | F16: 15.44 | G16: =+F16/F$19 -> 0.001940522483 | H16: 22.82 | I16: =+H16/H$19 -> 0.002720225629 | J16: 35.52 | K16: =+J16/J$19 -> 0.005035041165 | L16: 35.58 | M16: =+L16/L$19 -> 0.004432247528 | N16: 21.9 | O16: =+N16/N$19 -> 0.002624999101 | P16: 19.24 | Q16: =+P16/P$19 -> 0.002386608201 | R16: 21.06 | S16: =+R16/R$19 -> 0.002377216647 | T16: 12.31 | U16: =+T16/T$19 -> 0.002039859281 | V16: 26.63 | W16: =V16/V$19 -> 0.003547941847 | X16: 26.77 | Y16: 0.003529087618 | Z16: 285.89 | AA16: 0.003038359811 | AC16: 0.003602408242
A17: #3 - 7 | B17: 50.32 | C17: 0.006018310878 | D17: 50.82 | E17: 0.006420695815 | F17: 38.98 | G17: =+F17/F$19 -> 0.004899065181 | H17: 29.53 | I17: =+H17/H$19 -> 0.003520081631 | J17: 37.23 | K17: =+J17/J$19 -> 0.005277437572 | L17: 41 | M17: =+L17/L$19 -> 0.005107424077 | N17: 27.66 | O17: =+N17/N$19 -> 0.003315409823 | P17: 33.52 | Q17: =+P17/P$19 -> 0.004157957738 | R17: 24.97 | S17: =+R17/R$19 -> 0.002818570735 | T17: 7.94 | U17: =+T17/T$19 -> 0.001315717522 | V17: 0 | W17: =V17/V$19 -> 0 | X17: 0 | Y17: 0 | Z17: 341.97 | AA17: 0.003634362533 | AC17: 0.004309054344
A18: Residue | B18: =1528.64+1.25 -> 1529.89 | C18: 0.182976026 | D18: =0.54+988.59 -> 989.13 | E18: 0.1249685725 | F18: =1167.86+1.93 -> 1169.79 | G18: =+F18/F$19 -> 0.1470209712 | H18: =0.25+1230.05 -> 1230.3 | I18: =+H18/H$19 -> 0.1466561609 | J18: =0.52+1231.35 -> 1231.87 | K18: =+J18/J$19 -> 0.1746203874 | L18: =1.18+1005.38 -> 1006.56 | M18: =+L18/L$19 -> 0.1253885068 | N18: =1.89+1485.42 -> 1487.31 | O18: =+N18/N$19 -> 0.1782733979 | P18: =2.23+1630.63 -> 1632.86 | Q18: =+P18/P$19 -> 0.2025466251 | R18: =2.84+1642.62 -> 1645.46 | S18: =+R18/R$19 -> 0.1857367001 | T18: =1.41+1198.48 -> 1199.89 | U18: =+T18/T$19 -> 0.1988307679 | V18: =765.55+2.31 -> 767.86 | W18: =V18/V$19 -> 0.1023027648 | X18: =0.73+841.08 -> 841.81 | Y18: 0.1109757657 | Z18: 14732.73 | AA18: 0.1565753777
B19: =SUM(B8:B18) -> 8361.15 | C19: 1 | D19: 7915.03 | E19: =SUM(E8:E18) -> 1 | F19: 7956.62 | G19: =SUM(G8:G18) -> 1 | H19: 8389.01 | I19: =SUM(I8:I18) -> 1 | J19: 7054.56 | K19: =SUM(K8:K18) -> 1 | L19: 8027.53 | M19: =SUM(M8:M18) -> 1 | N19: 8342.86 | O19: =SUM(O8:O18) -> 1 | P19: 8061.65 | Q19: =SUM(Q8:Q18) -> 1 | R19: =SUM(R8:R18) -> 8859.1 | S19: =SUM(S8:S18) -> 1 | T19: =SUM(T8:T18) -> 6034.73 | U19: =SUM(U8:U18) -> 1 | V19: =SUM(V8:V18) -> 7505.76 | W19: =SUM(W8:W18) -> 1 | X19: =SUM(X8:X18) -> 7585.53 | Y19: =SUM(Y8:Y18) -> 1 | Z19: =SUM(Z8:Z18) -> 94093.53 | AA19: 1 | AC19: =SUM(AC8:AC18) -> 1

Sheet Customers
A1: Waste Management of Skagit County
A2: Recycling Customers by Jurisdiction
C5: 2018-05-01 | D5: 2018-06-01 | E5: 2018-07-01 | F5: 2018-08-01 | G5: 2018-09-01 | H5: 2018-10-01 | I5: 2018-11-01 | J5: 2018-12-01 | K5: 2019-01-01 | L5: 2019-02-01 | M5: 2019-03-01 | N5: 2019-04-01 | O5: Total | P5: %
A6: Contract Cities:
B7: Anacortes | C7: 6603 | D7: 6608 | E7: 6612 | F7: 6621 | G7: 6635 | H7: 6644 | I7: 6644 | J7: 6650 | K7: 6653 | L7: 6661 | M7: 6666 | N7: 6681 | O7: =SUM(C7:N7) -> 79678 | P7: =+O7/$O$24 -> 0.2066756242
B8: Burlington | C8: 2137 | D8: 2148 | E8: 2160 | F8: 2168 | G8: 2169 | H8: 2166 | I8: 2159 | J8: 2159 | K8: 2161 | L8: 2159 | M8: 2168 | N8: 2170 | O8: 25924 | P8: =+O8/$O$24 -> 0.0672438927
B9: Darrington | C9: 485 | D9: 486 | E9: 483 | F9: 484 | G9: 486 | H9: 489 | I9: 489 | J9: 488 | K9: 487 | L9: 489 | M9: 487 | N9: 487 | O9: 5840 | P9: 0.01514829245
B10: Sedro-Woolley -annex | C10: 5 | D10: 2 | E10: 2 | F10: 2 | G10: 1 | H10: 1 | I10: 1 | J10: 1 | K10: 1 | L10: 1 | M10: 1 | N10: 1 | O10: 19 | P10: 4.928382816e-05
B11: Mount Vernon | C11: 9429 | D11: 9452 | E11: 9450 | F11: 9464 | G11: 9451 | H11: 9446 | I11: 9452 | J11: 9452 | K11: 9461 | L11: 9464 | M11: 9471 | N11: 9419 | O11: 113411 | P11: 0.2941751703
B12: Stanwood | C12: 1783 | D12: 1791 | E12: 1796 | F12: 1813 | G12: 1796 | H12: 1797 | I12: 1797 | J12: 1796 | K12: 1795 | L12: 1784 | M12: 1784 | N12: 1809 | O12: 21541 | P12: 0.05587489171
B13: Other | C13: 524 | D13: 532 | E13: 535 | F13: 536 | G13: 519 | H13: 510 | I13: 510 | J13: 515 | K13: 520 | L13: 518 | M13: 527 | N13: 539 | O13: 6285 | P13: 0.01630257158
B14: Total | C14: =SUM(C7:C13) -> 20966 | D14: 21019 | E14: 21038 | F14: 21088 | G14: 21057 | H14: 21053 | I14: 21052 | J14: 21061 | K14: 21078 | L14: 21076 | M14: 21104 | N14: 21106 | O14: 252698 | P14: 0.6554697268
C15: =+C14/C24 -> 0.659660825 | D15: 0.6584487188 | E15: 0.656432338 | F15: 0.6543987587 | G15: 0.6553280219 | H15: 0.6556116094 | I15: 0.6556008844 | J15: 0.6551670503 | K15: 0.6544946437 | L15: 0.6548595575 | M15: 0.6542253085 | N15: 0.6515202963 | O15: 0.6554697268
A17: WUTC:
B18: Skagit County | C18: 5443 | D18: 5493 | E18: 5553 | F18: 5632 | G18: 5614 | H18: 5609 | I18: 5609 | J18: 5620 | K18: =5468+167 -> 5635 | L18: =168+5480 -> 5648 | M18: =169+5498 -> 5667 | N18: =168+5566 -> 5734 | O18: =SUM(C18:N18) -> 67257 | P18: 0.17445697
B19: Island County | C19: 2403 | D19: 2452 | E19: 2489 | F19: 2521 | G19: 2504 | H19: 2490 | I19: 2490 | J19: 2485 | K19: 2471 | L19: 2453 | M19: 2480 | N19: 2541 | O19: =SUM(C19:N19) -> 29779 | P19: 0.07724332204
B20: Snohomish County | C20: 2971 | D20: 2958 | E20: 2969 | F20: 2984 | G20: 2957 | H20: 2960 | I20: 2960 | J20: 2980 | K20: 3021 | L20: 3007 | M20: 3007 | N20: 3014 | O20: =SUM(C20:N20) -> 35788 | P20: 0.09282998117
B21: Total | C21: =SUM(C18:C20) -> 10817 | D21: 10903 | E21: 11011 | F21: 11137 | G21: 11075 | H21: 11059 | I21: 11059 | J21: 11085 | K21: 11127 | L21: 11108 | M21: =SUM(M18:M20) -> 11154 | N21: =SUM(N18:N20) -> 11289 | O21: =SUM(O18:O20) -> 132824 | P21: 0.3445302732
C22: =+C21/C$24 -> 0.340339175 | D22: =+D21/D$24 -> 0.3415512812 | E22: 0.343567662 | F22: 0.3456012413 | G22: 0.3446719781 | H22: 0.3443883906 | I22: 0.3443991156 | J22: 0.3448329497 | K22: 0.3455053563 | L22: 0.3451404425 | M22: 0.3457746915 | N22: 0.3484797037 | O22: 0.3445302732
B24: Grand Total | C24: =+C21+C14 -> 31783 | D24: 31922 | E24: 32049 | F24: 32225 | G24: 32132 | H24: 32112 | I24: 32111 | J24: 32146 | K24: 32205 | L24: 32184 | M24: 32258 | N24: 32395 | O24: 385522 | P24: 1

Sheet Tonnages Collected
A1: WM of Skagit County
A2: Residential Recycling Tons Collected
D5: Less:
C6: Res'l | D6: CRC
C7: Collected | D7: Residual | E7: Net
A8: Month | C8: Tons | D8: Rate | E8: Tons
A10: May, 18 | C10: 937.61 | D10: =+'CRC Composition'!C18 -> 0.182976026 | E10: =+C10-C10*D10 -> 766.0498482
A11: Jun | C11: 834.98 | D11: =+'CRC Composition'!E18 -> 0.1249685725 | E11: =+C11-C11*D11 -> 730.6337414
A12: Jul | C12: 883.85 | D12: =+'CRC Composition'!G18 -> 0.1470209712 | E12: 753.9055146
A13: Aug | C13: 852.2 | D13: =+'CRC Composition'!I18 -> 0.1466561609 | E13: 727.2196197
A14: Sep | C14: 798.19 | D14: =+'CRC Composition'!K18 -> 0.1746203874 | E14: 658.809753
A15: Oct | C15: 818.12 | D15: =+'CRC Composition'!M18 -> 0.1253885068 | E15: 715.5371548
A16: Nov | C16: 914.01 | D16: =+'CRC Composition'!O18 -> 0.1782733979 | E16: 751.0663316
A17: Dec | C17: 851.73 | D17: =+'CRC Composition'!Q18 -> 0.2025466251 | E17: 679.214963
A18: Jan., '19 | C18: 841.37 | D18: =+'CRC Composition'!S18 -> 0.1857367001 | E18: 685.0967126
A19: Feb | C19: 686.71 | D19: =+'CRC Composition'!U18 -> 0.1988307679 | E19: 550.1709234
A20: Mar | C20: 771.95 | D20: =+'CRC Composition'!W18 -> 0.1023027648 | E20: 692.9773807
A21: Apr | C21: 825.43 | D21: =+'CRC Composition'!Y18 -> 0.1109757657 | E21: 733.8272737
C22: =SUM(C10:C21) -> 10016.15 | D22: =(+C22-E22)/C22 -> 0.1569106676 | E22: =SUM(E10:E21) -> 8444.509217
